bitfinex/quotes_ETHUSD_20240719
["timestamp","ask_amount","ask_price","bid_price","bid_amount"]
[1721402022738,2.88692,3463.9,3463.7,5.7742]
[1721402022977,2.887,3463.8,3463.7,5.7742]
[1721402023174,5.774,3463.8,3463.7,5.7742]
[1721402023381,2.887,3463.8,3463.7,5.7742]
[1721402024980,2.88688,3464.0,3463.7,5.7742]
[1721402025568,2.8869,3464.0,3463.7,5.7742]
[1721402025752,2.88697,3463.9,3463.7,5.7742]
[1721402026099,2.887,3463.8,3463.7,5.7742]
[1721402026686,5.774,3463.8,3463.7,5.7742]
[1721402026890,2.887,3463.8,3463.7,5.7742]
[1721402028861,2.887,3463.8,3463.7,5.7742]
[1721402029867,5.774,3463.8,3463.7,5.7742]
[1721402030372,8.774,3463.8,3463.7,5.7742]
[1721402032591,5.887,3463.8,3463.7,5.7742]
[1721402033103,8.774,3463.8,3463.7,5.7742]
[1721402034090,5.887,3463.8,3463.7,5.7742]
[1721402035039,3.0,3463.8,3463.7,5.7742]
[1721402035437,3.0,3463.9,3463.7,5.7742]
[1721402035806,2.88667,3464.2,3463.7,5.7742]
[1721402036006,3.0,3464.1,3463.7,5.7742]
[1721402036336,2.8865,3464.4,3463.7,5.7742]
[1721402036633,2.88658,3464.3,3463.7,5.7742]
[1721402037421,2.88652,3464.4,3463.7,5.7742]
[1721402037870,3.0,3464.3,3463.7,5.7742]
[1721402038160,5.88659,3464.3,3463.7,5.7742]
[1721402038365,2.88667,3464.2,3463.7,5.7742]
[1721402039919,2.88676,3464.1,3463.7,5.7742]
[1721402040130,5.88664,3464.3,3463.7,5.7742]
[1721402040334,2.88667,3464.2,3463.7,5.7742]
[1721402041059,3.0,3464.3,3463.7,5.7742]
[1721402041566,3.0,3464.3,3463.7,8.66127]
[1721402041762,3.0,3464.4,3463.8,0.05773616]
[1721402041968,3.0,3464.4,3463.9,5.7738]
[1721402043178,3.0,3464.4,3463.9,8.6607]
[1721402043683,3.0,3464.4,3463.9,5.7738]
[1721402045843,5.70625,3464.7,3463.9,5.7738]
[1721402046148,3.0,3464.6,3463.9,5.7738]
[1721402046737,3.0,3464.6,3463.9,9.33626022]
[1721402046932,3.0,3464.6,3464.0,0.55]
[1721402047141,3.0,3464.7,3464.1,5.7735]
[1721402047348,5.88625,3464.7,3464.1,5.7735]
[1721402047892,2.88634,3464.6,3464.1,5.7735]
[1721402048187,5.88625,3464.7,3464.1,5.7735]
[1721402048188,3.0,3464.5,3464.1,5.7735]
[1721402048404,5.82,3464.7,3464.1,5.7735]
[1721402048568,3.0,3464.7,3464.3,2.4688]
[1721402048770,3.0,3464.7,3464.4,5.773]
[1721402048963,2.8863,3464.7,3464.4,5.773]
[1721402049165,2.88641,3464.5,3464.4,5.773]
[1721402049366,2.8863,3464.7,3464.4,5.773]
[1721402049658,3.0,3464.5,3464.4,5.773]
[1721402049958,3.0,3464.6,3464.4,5.773]
[1721402050153,2.88641,3464.5,3464.4,5.773]
[1721402050373,8.77282,3464.5,3464.4,5.773]
[1721402051710,13.47349092,3464.5,3464.4,5.773]
[1721402051858,13.47504597,3464.5,3464.4,5.773]
[1721402052057,11.65923,3464.5,3464.4,5.773]
[1721402053966,13.77838541,3464.5,3464.4,5.773]
[1721402054562,13.77838541,3464.5,3464.4,0.54218102]
[1721402054563,16.26998541,3464.5,3464.4,0.54218102]
[1721402054769,2.88773,3463.0,3462.0,1.08202423]
[1721402054991,2.88773,3463.0,3462.2,2.3535]
[1721402055206,1.51420923,3463.2,3462.3,5.7765]
[1721402055355,2.88807,3462.6,3462.3,5.7765]
[1721402056258,2.8881,3462.5,3462.3,5.7765]
[1721402057464,5.77634,3462.4,3462.3,5.7765]
[1721402059217,2.88817,3462.4,3462.3,5.7765]
[1721402059424,2.88803,3462.6,3462.3,5.7765]
[1721402059569,3.0,3462.9,3462.4,3.029]
[1721402059766,3.0,3463.0,3462.5,5.7762]
[1721402060509,7.49,3463.1,3462.5,5.7762]
[1721402060726,10.37759,3463.1,3462.5,5.7762]
[1721402060884,2.88772,3463.0,3462.5,6.714485]
[1721402061071,2.88772,3463.0,3462.5,5.7762]
[1721402061072,2.88783,3462.8,3462.5,5.7762]
[1721402062019,2.888,3462.6,3462.5,5.7762]
[1721402062373,5.776,3462.6,3462.5,5.7762]
[1721402062576,8.776,3462.6,3462.5,5.7762]
[1721402062970,5.888,3462.6,3462.5,5.7762]
[1721402063213,3.0,3462.6,3462.5,5.7762]
[1721402063521,3.0,3463.0,3462.6,2.4178]
[1721402063686,3.0,3463.0,3462.7,5.7758]
[1721402063890,2.88746,3463.3,3462.7,5.7758]
[1721402064182,2.88768,3463.0,3462.7,5.7758]
[1721402064612,2.88776,3462.9,3462.7,5.7758]
[1721402064916,2.88783,3462.8,3462.7,5.7758]
[1721402065710,8.77566,3462.8,3462.7,5.7758]
[1721402065923,5.77566,3462.8,3462.7,5.7758]
[1721402066217,8.77566,3462.8,3462.7,5.7758]
[1721402067694,11.66349,3462.8,3462.7,5.7758]
[1721402068830,8.77566,3462.8,3462.7,5.7758]
[1721402072193,5.88783,3462.8,3462.7,5.7758]
[1721402072701,8.77566,3462.8,3462.7,5.7758]
[1721402073233,5.88783,3462.8,3462.7,5.7758]
[1721402073803,3.0,3462.8,3462.7,5.7758]
[1721402074002,5.88762,3463.1,3462.7,5.7758]
[1721402074218,2.88762,3463.1,3462.7,5.7758]
[1721402074418,2.88746,3463.3,3462.7,6.66196307]
[1721402075004,2.88759,3463.1,3462.7,5.7758]
[1721402075326,2.88768,3463.0,3462.7,5.7758]
[1721402075903,2.8875,3463.2,3462.7,5.7758]
[1721402076112,2.88769,3463.0,3462.7,5.7758]
[1721402076417,2.88772,3463.0,3462.7,5.7758]
[1721402076845,2.88775,3462.9,3462.7,5.7758]
[1721402078248,2.88783,3462.8,3462.7,5.7758]
[1721402080794,2.88767,3463.0,3462.7,5.7758]
[1721402081034,3.0,3462.9,3462.7,5.7758]
[1721402081265,2.88776,3462.9,3462.7,5.7758]
[1721402081627,2.88783,3462.8,3462.7,5.7758]
[1721402084542,2.88767,3463.0,3462.7,5.7758]
[1721402084714,3.0,3462.9,3462.7,5.7758]
[1721402085216,2.88783,3462.8,3462.7,5.7758]
[1721402088471,11.66349,3462.8,3462.7,5.7758]
[1721402092220,8.77566,3462.8,3462.7,5.7758]
[1721402093762,5.88783,3462.8,3462.7,5.7758]
[1721402094084,3.0,3462.8,3462.7,5.7758]
[1721402094421,2.88741,3463.3,3462.7,5.7758]
[1721402095366,2.88758,3463.1,3462.7,5.7758]
[1721402095572,2.88767,3463.0,3462.7,5.7758]
[1721402095720,2.8875,3463.2,3462.7,5.7758]
[1721402095721,5.77566,3462.8,3462.7,5.7758]
[1721402095923,2.88783,3462.8,3462.7,5.7758]
[1721402096836,2.88761,3463.1,3462.7,5.7758]
[1721402097031,3.0,3463.0,3462.7,5.7758]
[1721402097250,2.88772,3463.0,3462.7,5.7758]
[1721402097533,3.0,3462.9,3462.7,5.7758]
[1721402097734,5.88776,3462.9,3462.7,5.7758]
[1721402099997,3.0,3462.9,3462.7,5.7758]
[1721402100174,5.88767,3463.0,3462.7,5.7758]
[1721402100480,2.88783,3462.9,3462.7,5.7758]
[1721402100653,3.0,3463.0,3462.7,5.7758]
[1721402102063,3.0,3463.0,3462.8,2.4678]
[1721402102265,3.0,3463.2,3462.9,5.7755]
[1721402102466,1.51310953,3463.3,3462.9,5.7755]
[1721402102645,1.51310953,3463.4,3462.9,6.888629]
[1721402102974,1.51224476,3463.5,3462.9,9.708629]
[1721402103383,1.51224476,3463.6,3462.9,12.596369]
[1721402103578,1.51225316,3463.6,3462.9,12.596369]
[1721402103782,9.00225316,3463.8,3463.0,2.94540608]
[1721402103984,1.51225316,3463.8,3463.1,6.34576139]
[1721402104304,1.51225316,3463.8,3463.2,2.4985]
[1721402104588,2.88684,3464.0,3463.3,5.7748]
[1721402104589,1.51225316,3463.9,3463.3,5.7748]
[1721402104965,4.39926316,3463.8,3463.3,5.7748]
[1721402105285,1.51225316,3463.8,3463.3,5.7748]
[1721402105490,4.51225316,3463.9,3463.3,5.7748]
[1721402105848,4.511762,3463.9,3463.3,5.7748]
[1721402106052,3.0,3463.8,3463.3,5.7748]
[1721402106250,1.511762,3463.9,3463.3,5.7748]
[1721402106451,7.398662,3464.0,3463.3,5.7748]
[1721402107384,5.8869,3464.0,3463.3,5.7748]
[1721402107554,2.88693,3463.9,3463.3,5.7748]
[1721402107754,3.0,3463.8,3463.3,5.7748]
[1721402108148,4.398502,3464.2,3463.3,8.5948]
[1721402108352,5.88682,3464.1,3463.3,5.7748]
[1721402108985,2.88701,3463.8,3463.3,5.7748]
[1721402109190,2.88709,3463.7,3463.3,5.7748]
[1721402109495,3.0,3463.6,3463.3,5.7748]
[1721402109702,2.88725,3463.5,3463.3,5.7748]
[1721402109898,3.0,3463.6,3463.3,5.7748]
[1721402109899,2.88733,3463.4,3463.3,5.7748]
[1721402110192,13.17191167,3463.4,3463.3,5.7748]
[1721402110355,7.28458167,3463.4,3463.3,5.7748]
[1721402110554,10.28458167,3463.4,3463.3,5.7748]
[1721402111853,11.66199,3463.4,3463.3,5.7748]
[1721402112289,13.47153861,3463.4,3463.3,5.7748]
[1721402112527,11.66199,3463.4,3463.3,5.7748]
[1721402113752,13.47204155,3463.4,3463.3,5.7748]
[1721402114358,10.58471155,3463.4,3463.3,5.7748]
[1721402114666,8.77466,3463.4,3463.3,5.7748]
[1721402114877,10.28283468,3463.4,3463.3,5.7748]
[1721402115080,8.77466,3463.4,3463.3,5.7748]
[1721402115272,10.28245682,3463.4,3463.3,5.7748]
[1721402116189,7.39512682,3463.4,3463.3,5.7748]
[1721402116394,5.88733,3463.4,3463.3,5.7748]
[1721402116759,2.88733,3463.4,3463.3,5.7748]
[1721402116961,2.88719,3463.6,3463.3,5.7748]
[1721402117164,2.88725,3463.5,3463.3,5.7748]
[1721402118109,2.88733,3463.4,3463.3,5.7748]
[1721402118318,5.88733,3463.4,3463.3,5.7748]
[1721402118826,3.0,3463.4,3463.3,5.7748]
[1721402119032,5.88733,3463.4,3463.3,5.7748]
[1721402122565,14.54932,3463.4,3463.3,5.7748]
[1721402123153,14.8492764,3463.4,3463.3,5.7748]
[1721402123430,14.8492764,3463.4,3463.3,1e-05]
[1721402123947,2.8881,3462.5,3461.5,2.3059]
[1721402124097,1.50743459,3462.3,3461.5,2.3059]
[1721402124291,2.88864,3461.9,3461.5,2.3059]
[1721402125043,3.0,3462.4,3461.5,5.1259]
[1721402125044,1.50737736,3462.3,3461.5,5.1259]
[1721402125231,3.0,3462.4,3461.5,8.2454]
[1721402125731,4.39521736,3462.8,3461.5,8.2454]
[1721402125732,2.88784,3462.8,3462.3,2.82]
[1721402126029,2.88752,3463.2,3462.4,5.7763]
[1721402126230,2.88752,3463.2,3462.5,2.4041]
[1721402126449,10.37734,3463.4,3462.7,2.82]
[1721402126450,11.88471736,3463.4,3462.7,2.82]
[1721402126615,4.39447736,3463.7,3462.8,5.7757]
[1721402126811,2.8871,3463.7,3462.8,5.83344707]
[1721402127016,2.88696,3463.9,3463.1,2.82]
[1721402127252,2.88696,3463.9,3463.2,8.1791]
[1721402127610,2.887,3463.8,3463.2,8.1791]
[1721402128049,2.88688,3464.0,3463.2,9.33401]
[1721402128550,11.88412736,3464.1,3463.2,9.33401]
[1721402128551,7.49,3464.1,3463.3,0.05774386]
[1721402128845,2.88652,3464.4,3463.6,2.82]
[1721402129032,2.88652,3464.4,3463.7,5.7742]
[1721402129232,2.88659,3464.3,3463.7,5.7742]
[1721402130310,2.88667,3464.2,3463.7,5.7742]
[1721402130511,3.0,3464.1,3463.7,5.7742]
[1721402131211,5.88675,3464.1,3463.7,5.7742]
[1721402132128,2.88694,3463.9,3463.7,5.7742]
[1721402132836,5.88679,3464.1,3463.7,5.7742]
[1721402133037,2.88684,3464.0,3463.7,5.7742]
[1721402133239,3.0,3464.1,3463.7,5.7742]
[1721402133551,5.774,3463.8,3463.7,5.7742]
[1721402133923,2.887,3463.8,3463.7,5.7742]
[1721402134765,3.0,3464.3,3463.7,5.7742]
[1721402134964,2.887,3463.8,3463.7,5.7742]
[1721402135111,8.774,3463.8,3463.7,5.7742]
[1721402136908,5.887,3463.8,3463.7,5.7742]
[1721402137155,3.0,3463.8,3463.7,5.7742]
[1721402137370,3.0,3463.9,3463.7,5.7742]
[1721402138740,10.37652,3464.4,3463.7,5.7742]
[1721402139617,2.8866,3464.3,3463.7,5.7742]
[1721402139832,2.88652,3464.4,3463.7,5.7742]
[1721402140416,3.0,3464.3,3463.7,5.7742]
[1721402142144,3.0,3464.3,3463.7,6.922351]
[1721402142357,3.0,3464.5,3463.8,2.8565]
[1721402142541,3.0,3464.5,3463.9,5.7738]
[1721402142972,5.88626,3464.7,3463.9,5.7738]
[1721402143631,2.88634,3464.6,3463.9,5.7738]
[1721402143820,3.0,3464.5,3463.9,5.7738]
[1721402145465,3.0,3464.5,3463.9,7.3223611]
[1721402146026,3.0,3464.7,3463.9,7.3223611]
[1721402146225,5.88627,3464.7,3463.9,7.3223611]
[1721402146979,3.0,3464.7,3463.9,5.7738]
[1721402147131,2.88636,3464.6,3463.9,5.7738]
[1721402147327,3.0,3464.5,3463.9,5.7738]
[1721402148240,5.88642,3464.5,3463.9,5.7738]
[1721402151376,3.0,3464.5,3463.9,5.7738]
[1721402151671,3.0,3464.6,3463.9,5.7738]
[1721402151831,5.88633,3464.6,3463.9,5.7738]
[1721402152259,2.88656,3464.4,3463.9,5.7738]
[1721402152445,2.88659,3464.3,3463.9,5.7738]
[1721402152647,2.88683,3464.0,3463.9,5.7738]
[1721402153461,5.88683,3464.0,3463.9,5.7738]
[1721402153772,11.66049,3464.0,3463.9,5.7738]
[1721402155337,8.77366,3464.0,3463.9,5.7738]
[1721402155990,3.0,3464.0,3463.9,5.7738]
[1721402156346,2.88659,3464.3,3463.9,5.7738]
[1721402156347,3.0,3464.2,3463.9,5.7738]
[1721402157268,2.88659,3464.3,3463.9,5.7738]
[1721402157656,2.88635,3464.6,3463.9,5.7738]
[1721402157802,2.88642,3464.5,3463.9,5.7738]
[1721402158664,3.0,3464.4,3463.9,5.7738]
[1721402159602,3.0,3464.5,3463.9,5.7738]
[1721402159903,5.88642,3464.5,3463.9,5.7738]
[1721402160130,2.88642,3464.5,3463.9,5.7738]
[1721402160265,3.0,3464.4,3463.9,5.7738]
[1721402161402,3.0,3464.4,3463.9,7.151395]
[1721402161608,5.88634,3464.6,3463.9,7.151395]
[1721402161760,3.0,3464.6,3463.9,5.7738]
[1721402161963,2.88647,3464.5,3463.9,5.7738]
[1721402162203,3.0,3464.4,3463.9,5.7738]
[1721402162731,3.0,3464.5,3463.9,5.7738]
[1721402162931,2.8865,3464.4,3463.9,5.7738]
[1721402163095,3.0,3464.5,3463.9,5.7738]
[1721402163299,3.0,3464.5,3463.9,7.151396]
[1721402163803,5.88642,3464.5,3463.9,7.151396]
[1721402164001,5.88642,3464.5,3463.9,5.7738]
[1721402164190,3.0,3464.5,3463.9,5.7738]
[1721402164385,3.0,3464.6,3463.9,5.7738]
[1721402166425,3.0,3464.7,3463.9,5.7738]
[1721402168663,5.88625,3464.7,3463.9,6.52805409]
[1721402168973,2.8865,3464.4,3463.9,5.7738]
[1721402169417,2.88683,3464.0,3463.9,5.7738]
[1721402169619,2.88672,3464.2,3463.9,5.7738]
[1721402170119,4.50368853,3464.8,3463.9,5.7738]
[1721402170120,2.88675,3464.1,3463.9,5.7738]
[1721402170429,2.88668,3464.2,3463.9,5.7738]
[1721402171372,1.50382187,3464.7,3463.9,6.58068]
[1721402171531,3.0,3464.4,3464.0,2.82]
[1721402171732,1.50382187,3464.7,3464.1,5.7735]
[1721402171949,2.88625,3464.7,3464.1,5.7735]
[1721402172558,3.0,3464.6,3464.1,5.7735]
[1721402172796,3.0,3464.6,3464.1,7.06053648]
[1721402173209,3.0,3464.6,3464.1,5.7735]
[1721402173492,2.88666,3464.2,3464.1,5.7735]
[1721402173694,4.39341925,3464.3,3464.1,5.7735]
[1721402173896,1.50676925,3464.4,3464.2,2.4814]
[1721402174116,3.0,3464.6,3464.3,5.7732]
[1721402174258,4.50676925,3464.7,3464.3,5.7732]
[1721402174903,7.39301925,3464.7,3464.3,5.7732]
[1721402175488,1.50676925,3464.6,3464.3,5.7732]
[1721402175700,1.50676925,3464.5,3464.3,5.7732]
[1721402175885,4.50676925,3464.6,3464.3,5.7732]
[1721402176293,4.50688231,3464.6,3464.3,5.7732]
[1721402176805,2.88647,3464.5,3464.3,5.7732]
[1721402177115,3.0,3464.4,3464.3,5.7732]
[1721402177495,2.8865,3464.4,3464.3,5.7732]
[1721402177803,2.95,3464.4,3464.3,5.7732]
[1721402178812,2.8865,3464.4,3464.3,5.7732]
[1721402179611,5.773,3464.4,3464.3,5.7732]
[1721402179975,8.773,3464.4,3464.3,5.7732]
[1721402180786,11.6595,3464.4,3464.3,5.7732]
[1721402181112,13.46817908,3464.4,3464.3,5.7732]
[1721402181266,11.6595,3464.4,3464.3,5.7732]
[1721402181480,8.773,3464.4,3464.3,5.7732]
[1721402181684,10.58180783,3464.4,3464.3,5.7732]
[1721402181913,8.773,3464.4,3464.3,5.7732]
[1721402185685,5.8865,3464.4,3464.3,5.7732]
[1721402185880,4.69609378,3464.6,3464.3,5.7732]
[1721402185881,1.50826969,3464.5,3464.3,5.7732]
[1721402186119,4.39460969,3464.6,3464.4,2.4043]
[1721402186319,2.88634,3464.6,3464.4,2.4043]
[1721402186518,4.39460969,3464.6,3464.4,2.4043]
[1721402187029,1.50826969,3464.7,3464.4,2.4043]
[1721402187212,0.45254039,3465.4,3464.5,6.676482]
[1721402187213,1.50826969,3464.8,3464.5,6.676482]
[1721402187419,1.50826969,3465.1,3464.6,2.37082294]
[1721402187784,4.39386969,3465.5,3464.9,2.82]
[1721402187935,4.39393969,3465.4,3465.0,5.772]
[1721402188148,2.88567,3465.4,3465.0,5.772]
[1721402188293,4.39379969,3465.6,3465.0,6.6862]
[1721402188489,1.50826969,3465.7,3465.3,2.82]
[1721402188737,1.50800421,3465.8,3465.4,5.7713]
[1721402188909,1.50800421,3465.9,3465.4,5.7713]
[1721402189108,2.88525,3465.9,3465.4,6.85564]
[1721402189322,4.39325421,3465.9,3465.4,6.85564]
[1721402189636,2.88534,3465.8,3465.4,6.85564]
[1721402189792,2.88534,3465.8,3465.4,5.7713]
[1721402190242,5.88542,3465.7,3465.4,5.7713]
[1721402190552,4.39325421,3465.9,3465.4,5.7713]
[1721402190553,5.8855,3465.6,3465.4,5.7713]
[1721402191060,10.16474421,3465.5,3465.4,5.7713]
[1721402191338,8.65674,3465.5,3465.4,5.7713]
[1721402191541,5.88558,3465.5,3463.7,7.33]
[1721402191689,5.88558,3465.5,3463.5,2.4829]
[1721402191690,2.88682,3464.1,3463.5,2.4829]
[1721402191896,2.88684,3464.0,3463.6,0.53029]
[1721402192540,2.88677,3464.1,3463.6,0.53029]
[1721402193690,2.88659,3464.3,3463.6,0.53029]
[1721402193896,2.88659,3464.3,3463.8,2.82]
[1721402194444,2.88642,3464.5,3463.8,2.82]
[1721402194756,5.8865,3464.4,3463.8,2.82]
[1721402194953,2.8865,3464.4,3463.8,2.82]
[1721402195309,4.50517378,3464.7,3463.8,2.82]
[1721402195310,4.50517378,3464.7,3463.8,3.403319]
[1721402195631,8.99517378,3464.9,3464.3,2.2573]
[1721402195815,2.40680797,3465.5,3464.3,2.2573]
[1721402195816,1.50517378,3465.3,3464.6,2.82]
[1721402196150,2.88558,3465.5,3464.6,2.82]
[1721402196351,2.88551,3465.6,3465.1,2.2573]
[1721402196673,4.39040378,3466.0,3465.1,2.71481294]
[1721402196808,2.88523,3466.0,3465.4,2.82]
[1721402197520,4.69102854,3466.5,3465.4,2.82]
[1721402197521,2.88503,3466.2,3465.4,2.82]
[1721402198051,2.88487,3466.4,3465.4,2.87770405]
[1721402198270,2.88492,3466.3,3465.5,0.57634741]
[1721402198473,2.88476,3466.5,3465.5,3.46192741]
[1721402198755,2.88462,3466.7,3465.8,2.82]
[1721402198963,4.39002182,3466.8,3465.9,2.2573]
[1721402198964,2.88469,3466.6,3465.9,2.2573]
[1721402199420,2.88462,3466.7,3465.9,2.2573]
[1721402199626,10.37434,3467.0,3465.9,2.2573]
[1721402199627,2.88473,3466.6,3465.9,2.2573]
[1721402200044,2.8846,3466.7,3465.9,2.2573]
[1721402200246,2.88445,3466.9,3466.0,0.66961913]
[1721402200614,2.88453,3466.8,3466.0,0.66961913]
[1721402200816,3.0,3466.7,3466.0,0.66961913]
[1721402201638,5.88459,3466.7,3466.0,0.66961913]
[1721402201839,3.0,3466.7,3466.1,0.29269191]
[1721402202152,7.49,3467.4,3466.1,0.29269191]
[1721402202153,3.0,3467.3,3466.1,0.29269191]
[1721402202677,2.88429,3467.1,3466.2,3.81069272]
[1721402202838,2.88429,3467.1,3466.3,0.05769039]
[1721402203246,2.88411,3467.3,3466.2,3.753]
[1721402203476,2.88411,3467.3,3466.3,1.9030491]
[1721402203635,10.37401,3467.4,3466.3,1.9030491]
[1721402203636,2.88418,3467.2,3466.3,1.9030491]
[1721402204452,10.37401,3467.4,3466.4,2.4013]
[1721402204669,5.88412,3467.3,3466.4,2.4013]
[1721402204883,2.88419,3467.2,3466.4,2.4013]
[1721402205174,5.88392,3467.5,3466.5,1.09423391]
[1721402205377,5.88392,3467.5,3466.6,0.55]
[1721402205675,2.88368,3467.8,3466.7,6.63757]
[1721402206040,2.88351,3468.0,3466.8,6.47949]
[1721402206243,1.49985423,3468.9,3466.8,6.47949]
[1721402206244,2.88348,3468.1,3466.9,2.3438]
[1721402206483,2.88348,3468.1,3467.2,3.753]
[1721402206643,2.88351,3468.0,3467.2,3.753]
[1721402206979,5.76725,3467.9,3467.2,3.753]
[1721402207137,2.88329,3468.3,3467.2,3.753]
[1721402207789,7.49,3468.7,3467.2,3.753]
[1721402208080,2.88343,3468.1,3467.2,3.753]
[1721402208384,2.88319,3468.4,3467.4,2.3438]
[1721402208584,2.88319,3468.4,3467.4,5.22779]
[1721402208879,2.88301,3468.6,3467.5,2.8839]
[1721402209093,2.88301,3468.6,3467.6,1.7417431]
[1721402209293,2.88309,3468.5,3467.6,1.7417431]
[1721402209870,2.88319,3468.4,3467.6,1.7417431]
[1721402210071,2.88343,3468.1,3467.4,2.3438]
[1721402210295,2.88367,3467.8,3467.4,2.3438]
[1721402210465,2.88352,3468.0,3467.4,2.3438]
[1721402210803,2.88343,3468.1,3467.4,2.3438]
[1721402210984,2.88368,3467.8,3467.4,2.3438]
[1721402211294,2.88392,3467.5,3466.9,2.355]
[1721402211505,2.88398,3467.5,3466.9,2.355]
[1721402211653,2.88384,3467.6,3466.9,2.355]
[1721402212084,2.88409,3467.3,3466.9,2.355]
[1721402212395,2.88398,3467.5,3466.9,2.355]
[1721402212607,2.88402,3467.4,3466.9,2.355]
[1721402212903,2.8841,3467.3,3466.9,2.355]
[1721402213462,2.88393,3467.5,3466.9,2.355]
[1721402213686,2.88393,3467.5,3466.9,2.9658]
[1721402214613,2.88401,3467.4,3466.9,2.355]
[1721402214770,2.88388,3467.6,3466.9,2.355]
[1721402215109,3.0,3468.0,3467.0,0.55]
[1721402215110,2.88372,3467.8,3467.0,0.55]
[1721402216004,3.0,3468.0,3466.9,2.355]
[1721402216161,2.88414,3467.3,3466.9,2.355]
[1721402216560,2.88375,3467.7,3467.0,0.55]
[1721402216766,2.88384,3467.6,3467.0,0.55]
[1721402217471,2.88367,3467.8,3467.0,0.55]
[1721402217884,2.8836,3467.9,3467.0,0.55]
[1721402218207,2.88369,3467.8,3467.0,0.55]
[1721402218366,2.88385,3467.6,3467.0,1.869238]
[1721402218572,2.88376,3467.7,3467.0,1.319238]
[1721402218795,2.88376,3467.7,3466.9,2.9658]
[1721402218796,2.88401,3467.4,3466.9,2.355]
[1721402218968,2.88401,3467.4,3467.0,0.55]
[1721402219480,2.88404,3467.4,3466.9,2.355]
[1721402219689,3.0,3467.6,3466.9,2.355]
[1721402219895,7.49,3468.3,3467.0,1.449258]
[1721402219896,5.88375,3467.7,3467.0,1.449258]
[1721402220121,5.88375,3467.7,3467.0,0.55]
[1721402220771,3.0,3467.7,3467.0,0.55]
[1721402220967,2.88389,3467.6,3466.9,2.355]
[1721402221171,2.88417,3467.2,3466.9,2.355]
[1721402221731,2.88417,3467.2,3467.0,5.7686]
[1721402221868,2.88425,3467.1,3467.0,5.7686]
[1721402222270,2.88414,3467.3,3467.0,5.7686]
[1721402222567,2.88397,3467.5,3467.0,6.95626]
[1721402222797,2.88402,3467.4,3467.0,5.7686]
[1721402223112,3.0,3467.7,3467.0,5.7686]
[1721402223406,2.88416,3467.3,3467.0,5.7686]
[1721402223610,2.88418,3467.2,3467.0,5.7686]
[1721402224482,5.76806,3467.4,3467.0,5.7686]
[1721402224673,2.884,3467.4,3467.0,5.7686]
[1721402225013,2.88417,3467.2,3467.0,5.7686]
[1721402225170,2.88425,3467.1,3467.0,5.7686]
[1721402225395,8.65275,3467.1,3467.0,5.7686]
[1721402225596,11.65275,3467.1,3467.0,5.7686]
[1721402226022,5.88425,3467.1,3467.0,5.7686]
[1721402226239,8.7685,3467.1,3467.0,5.7686]
[1721402226731,5.88425,3467.1,3467.0,5.7686]
[1721402227119,3.0,3467.1,3467.0,5.7686]
[1721402227295,2.88402,3467.4,3467.0,5.7686]
[1721402227296,2.88402,3467.4,3467.0,6.34546]
[1721402227495,5.37254,3468.5,3467.0,6.34546]
[1721402227496,2.88409,3467.3,3467.0,6.34546]
[1721402227729,2.88409,3467.3,3467.0,5.7686]
[1721402227974,2.88392,3467.5,3467.0,5.7686]
[1721402228446,2.88376,3467.7,3467.0,5.7686]
[1721402228447,2.88376,3467.7,3467.1,2.813]
[1721402228627,2.8836,3467.9,3467.2,5.7683]
[1721402228828,2.8836,3467.9,3467.5,2.813]
[1721402229154,2.8836,3467.9,3467.6,5.7677]
[1721402229552,2.88343,3468.1,3467.6,5.7677]
[1721402229713,2.88352,3468.0,3467.6,5.7677]
[1721402230061,2.88359,3467.9,3467.6,5.7677]
[1721402230208,3.0,3468.3,3467.6,5.7677]
[1721402230407,2.88375,3467.7,3467.6,5.7677]
[1721402230611,8.65125,3467.7,3467.6,5.7677]
[1721402230822,11.65125,3467.7,3467.6,5.7677]
[1721402232020,11.65125,3467.7,3467.6,2e-05]
[1721402232021,14.535,3467.7,3467.6,2e-05]
[1721402232227,14.83496479,3467.7,3467.6,2e-05]
[1721402232421,2.88468,3466.6,3466.3,2.3268]
[1721402232659,3.0,3467.3,3466.3,2.3268]
[1721402232827,2.88483,3466.4,3465.6,2.2958]
[1721402233050,2.88498,3466.3,3465.7,0.60458]
[1721402233587,2.8842,3467.2,3465.7,0.60458]
[1721402233780,2.88516,3466.1,3465.6,2.2958]
[1721402234450,7.49,3467.0,3465.6,2.2958]
[1721402234451,3.0,3466.7,3465.6,2.2958]
[1721402234651,2.88541,3465.7,3465.6,2.2958]
[1721402235540,2.88536,3465.8,3465.6,2.2958]
[1721402235946,2.88541,3465.7,3465.6,2.2958]
[1721402236338,2.8856,3465.5,3465.1,2.3494]
[1721402236983,2.88522,3466.0,3465.1,2.3494]
[1721402237341,2.88565,3465.5,3465.1,2.3494]
[1721402238039,2.88572,3465.4,3465.1,2.3494]
[1721402238271,2.88567,3465.4,3465.1,2.3494]
[1721402238483,2.88525,3465.9,3465.1,2.3494]
[1721402238990,2.88566,3465.5,3465.1,2.3494]
[1721402239487,3.0,3465.4,3464.6,2.3304]
[1721402239693,2.88607,3465.0,3464.6,2.3304]
[1721402239851,2.8861,3464.9,3464.6,2.3304]